fUSD/lending_fUSD_20260621
["ID","MTS","AMOUNT","RATE_DAILY","PERIOD"]
[425898068,1782030672000,-1047.94,0.00028493,2]
[425898065,1782030672000,-920.46,0.00028493,2]
[425898073,1782030672000,-500.0,0.00028493,2]
[425898075,1782030672000,-500.0,0.00028493,2]
[425898066,1782030672000,-500.0,0.00028493,2]
[425898070,1782030672000,-761.28,0.00028493,2]
[425898063,1782030672000,-500.0,0.00028493,2]
[425898069,1782030672000,-500.0,0.00028493,2]
[425898064,1782030672000,-500.0,0.00028493,2]
[425898134,1782030673000,-500.0,0.00028493,2]
[425898127,1782030673000,-500.0,0.00028493,2]
[425898129,1782030673000,-2256.95,0.00028493,2]
[425898132,1782030673000,-1104.75,0.00028493,2]
[425898137,1782030673000,-427.02574878,0.00028493,2]
[425898138,1782030673000,-500.0,0.00028493,2]
[425898128,1782030673000,-500.0,0.00028493,2]
[425898136,1782030673000,-500.0,0.00028493,2]
[425898131,1782030673000,-500.0,0.00028493,2]
[425898133,1782030673000,-500.0,0.00028493,2]
[425898135,1782030673000,-700.0,0.00028493,7]
[425898141,1782030673000,-500.0,0.00028493,2]
[425898152,1782030673000,-500.0,0.00028493,2]
[425898148,1782030673000,-500.0,0.00028493,2]
[425898144,1782030673000,-500.0,0.00028493,2]
[425898139,1782030673000,-500.0,0.00028493,2]
[425898146,1782030673000,-1974.92,0.00028493,2]
[425898142,1782030673000,-500.0,0.00028493,2]
[425898140,1782030673000,-4789.96,0.00028493,2]
[425898147,1782030673000,-1174.46,0.00028493,2]
[425898145,1782030673000,-845.19,0.00028493,2]
[425898143,1782030673000,-500.0,0.00028493,2]
[425898151,1782030673000,-500.0,0.00028493,2]
[425898130,1782030673000,-1669.63,0.00028493,2]
[425898149,1782030673000,-500.0,0.00028493,2]
[425898121,1782030673000,-500.0,0.00028493,2]
[425898100,1782030673000,-500.0,0.00028493,2]
[425898125,1782030673000,-935.34,0.00028493,2]
[425898101,1782030673000,-869.82,0.00028493,2]
[425898150,1782030673000,-500.0,0.00028493,2]
[425898105,1782030673000,-500.0,0.00028493,2]
[425898102,1782030673000,-500.0,0.00028493,2]
[425898103,1782030673000,-540.01,0.00028493,2]
[425898104,1782030673000,-546.96,0.00028493,2]
[425898113,1782030673000,-500.0,0.00028493,2]
[425898112,1782030673000,-500.0,0.00028493,2]
[425898116,1782030673000,-485.69372992,0.00028493,2]
[425898108,1782030673000,-500.0,0.00028493,2]
[425898107,1782030673000,-500.0,0.00028493,2]
[425898119,1782030673000,-500.0,0.00028493,2]
[425898115,1782030673000,-1233.28,0.00028493,2]
[425898111,1782030673000,-662.25,0.00028493,2]
[425898106,1782030673000,-500.0,0.00028493,2]
[425898110,1782030673000,-500.0,0.00028493,2]
[425898109,1782030673000,-504.55,0.00028493,2]
[425898124,1782030673000,-1631.14,0.00028493,2]
[425898122,1782030673000,-500.0,0.00028493,2]
[425898118,1782030673000,-500.0,0.00028493,2]
[425898123,1782030673000,-500.0,0.00028493,2]
[425898117,1782030673000,-500.0,0.00028493,2]
[425898120,1782030673000,-646.77,0.00028493,2]
[425898126,1782030673000,-500.0,0.00028493,2]
[425898114,1782030673000,-500.0,0.00028493,2]
[425898154,1782030673000,-500.0,0.00028493,2]
[425898153,1782030673000,-500.0,0.00028493,2]
[425898158,1782030673000,-500.0,0.00028493,2]
[425898184,1782030673000,-775.21,0.00028493,2]
[425898191,1782030673000,-500.0,0.00028493,2]
[425898190,1782030673000,-728.91,0.00028493,2]
[425898189,1782030673000,-4723.42,0.00028493,2]
[425898188,1782030673000,-567.62,0.00028493,2]
[425898192,1782030673000,-500.0,0.00028493,2]
[425898193,1782030673000,-1170.07,0.00028493,2]
[425898194,1782030673000,-500.0,0.00028493,2]
[425898183,1782030673000,-500.0,0.00028493,2]
[425898196,1782030673000,-500.0,0.00028493,2]
[425898198,1782030673000,-500.0,0.00028493,2]
[425898203,1782030673000,-500.0,0.00028493,2]
[425898200,1782030673000,-1124.0,0.00028493,2]
[425898201,1782030673000,-606.62,0.00028493,2]
[425898195,1782030673000,-500.0,0.00028493,2]
[425898205,1782030673000,-500.0,0.00028493,2]
[425898197,1782030673000,-500.0,0.00028493,2]
[425898199,1782030673000,-1108.41,0.00028493,2]
[425898204,1782030673000,-542.47,0.00028493,2]
[425898202,1782030673000,-500.0,0.00028493,2]
[425898207,1782030673000,-1142.21,0.00028493,2]
[425898210,1782030673000,-500.0,0.00028493,2]
[425898209,1782030673000,-500.0,0.00028493,2]
[425898208,1782030673000,-810.37,0.00028493,2]
[425898155,1782030673000,-500.0,0.00028493,2]
[425898185,1782030673000,-500.0,0.00028493,2]
[425898187,1782030673000,-1173.97,0.00028493,2]
[425898206,1782030673000,-1703.22,0.00028493,2]
[425898182,1782030673000,-1620.05,0.00028493,2]
[425898156,1782030673000,-841.88,0.00028493,2]
[425898186,1782030673000,-500.0,0.00028493,2]
[425898159,1782030673000,-500.0,0.00028493,2]
[425898162,1782030673000,-622.18,0.00028493,2]
[425898163,1782030673000,-500.0,0.00028493,2]
[425898164,1782030673000,-500.0,0.00028493,2]
[425898165,1782030673000,-500.0,0.00028493,2]
[425898160,1782030673000,-500.0,0.00028493,2]
[425898169,1782030673000,-1132.92,0.00028493,2]
[425898168,1782030673000,-500.0,0.00028493,2]
[425898161,1782030673000,-500.0,0.00028493,2]
[425898167,1782030673000,-4274.09,0.00028493,2]
[425898166,1782030673000,-405.6301871,0.00028493,2]
[425898157,1782030673000,-500.0,0.00028493,2]
[425898176,1782030673000,-500.0,0.00028493,2]
[425898170,1782030673000,-500.0,0.00028493,2]
[425898178,1782030673000,-500.0,0.00028493,2]
[425898177,1782030673000,-500.0,0.00028493,2]
[425898175,1782030673000,-1070.05,0.00028493,2]
[425898173,1782030673000,-500.0,0.00028493,2]
[425898179,1782030673000,-500.0,0.00028493,2]
[425898171,1782030673000,-609.54140635,0.00028493,2]
[425898180,1782030673000,-2291.39,0.00028493,2]
[425898181,1782030673000,-500.0,0.00028493,2]
[425898172,1782030673000,-1376.25,0.00028493,2]
[425898174,1782030673000,-500.0,0.00028493,2]
[425898247,1782030674000,-1000.0,0.00028493,2]
[425898245,1782030674000,-1748.67,0.00028493,2]
[425898243,1782030674000,-420.423312,0.00028493,2]
[425898242,1782030674000,-500.0,0.00028493,2]
[425898248,1782030674000,-561.78,0.00028493,2]
[425898236,1782030674000,-500.0,0.00028493,2]
[425898252,1782030674000,-616.94,0.00028493,2]
[425898241,1782030674000,-500.0,0.00028493,2]
[425898253,1782030674000,-500.0,0.00028493,2]
[425898249,1782030674000,-637.56,0.00028493,2]
[425898246,1782030674000,-563.39,0.00028493,2]
[425898244,1782030674000,-500.0,0.00028493,2]
[425898250,1782030674000,-500.0,0.00028493,2]
[425898258,1782030674000,-500.0,0.00028493,2]
[425898254,1782030674000,-500.0,0.00028493,2]
[425898256,1782030674000,-559.91,0.00028493,2]
[425898257,1782030674000,-500.0,0.00028493,2]
[425898260,1782030674000,-500.0,0.00028493,2]
[425898259,1782030674000,-500.0,0.00028493,2]
[425898255,1782030674000,-4314.51,0.00028493,2]
[425898261,1782030674000,-3862.56,0.00028493,2]
[425898262,1782030674000,-1028.12,0.00028493,2]
[425898264,1782030674000,-541.65,0.00028493,2]
[425898265,1782030674000,-500.0,0.00028493,2]
[425898266,1782030674000,-500.0,0.00028493,2]
[425898251,1782030674000,-901.37,0.00028493,2]
[425898239,1782030674000,-500.0,0.00028493,2]
[425898217,1782030674000,-288.39198991,0.00028493,2]
[425898240,1782030674000,-500.0,0.00028493,2]
[425898276,1782030674000,-500.0,0.00028493,2]
[425898213,1782030674000,-500.0,0.00028493,2]
[425898212,1782030674000,-837.29,0.00028493,2]
[425898214,1782030674000,-500.0,0.00028493,2]
[425898211,1782030674000,-450.19425557,0.00028493,2]
[425898216,1782030674000,-500.0,0.00028493,2]
[425898215,1782030674000,-582.46,0.00028493,2]
[425898221,1782030674000,-1091.17,0.00028493,2]
[425898219,1782030674000,-744.53,0.00028493,2]
[425898220,1782030674000,-500.0,0.00028493,2]
[425898223,1782030674000,-500.0,0.00028493,2]
[425898226,1782030674000,-500.0,0.00028493,2]
[425898238,1782030674000,-3065.16,0.00028493,2]
[425898227,1782030674000,-500.0,0.00028493,2]
[425898224,1782030674000,-500.0,0.00028493,2]
[425898229,1782030674000,-179.60050284,0.00028493,2]
[425898222,1782030674000,-500.0,0.00028493,2]
[425898225,1782030674000,-500.0,0.00028493,2]
[425898228,1782030674000,-500.0,0.00028493,2]
[425898230,1782030674000,-627.76,0.00028493,2]
[425898232,1782030674000,-575.96,0.00028493,2]
[425898233,1782030674000,-500.0,0.00028493,2]
[425898237,1782030674000,-1347.36,0.00028493,2]
[425898235,1782030674000,-525.59,0.00028493,2]
[425898231,1782030674000,-500.0,0.00028493,2]
[425898234,1782030674000,-500.0,0.00028493,2]
[425898218,1782030674000,-500.0,0.00028493,2]
[425898272,1782030674000,-3679.81,0.00028493,2]
[425898263,1782030674000,-1207.68,0.00028493,2]
[425898267,1782030674000,-500.0,0.00028493,2]
[425898311,1782030674000,-681.71,0.00028493,2]
[425898309,1782030674000,-2877.52,0.00028493,2]
[425898300,1782030674000,-500.0,0.00028493,2]
[425898304,1782030674000,-500.0,0.00028493,2]
[425898301,1782030674000,-500.0,0.00028493,2]
[425898303,1782030674000,-500.0,0.00028493,2]
[425898302,1782030674000,-838.96,0.00028493,2]
[425898306,1782030674000,-500.0,0.00028493,2]
[425898305,1782030674000,-5457.71,0.00028493,2]
[425898310,1782030674000,-500.0,0.00028493,2]
[425898307,1782030674000,-872.58,0.00028493,2]
[425898308,1782030674000,-813.38,0.00028493,2]
[425898297,1782030674000,-620.2,0.00028493,2]
[425898324,1782030674000,-500.0,0.00028493,2]
[425898313,1782030674000,-500.0,0.00028493,2]
[425898316,1782030674000,-640.67,0.00028493,2]
[425898315,1782030674000,-500.0,0.00028493,2]
[425898323,1782030674000,-500.0,0.00028493,2]
[425898314,1782030674000,-500.0,0.00028493,2]
[425898312,1782030674000,-2372.91,0.00028493,2]
[425898319,1782030674000,-500.0,0.00028493,2]
[425898318,1782030674000,-500.0,0.00028493,2]
[425898321,1782030674000,-500.0,0.00028493,2]
[425898317,1782030674000,-1139.19,0.00028493,2]
[425898325,1782030674000,-500.0,0.00028493,2]
[425898273,1782030674000,-500.0,0.00028493,2]
[425898322,1782030674000,-668.87,0.00028493,2]
[425898295,1782030674000,-1143.14,0.00028493,2]
[425898320,1782030674000,-835.12,0.00028493,2]
[425898288,1782030674000,-500.0,0.00028493,2]
[425898292,1782030674000,-500.0,0.00028493,2]
[425898270,1782030674000,-500.0,0.00028493,2]
[425898275,1782030674000,-500.0,0.00028493,2]
[425898268,1782030674000,-1385.81,0.00028493,2]
[425898274,1782030674000,-500.0,0.00028493,2]
[425898269,1782030674000,-672.54,0.00028493,2]
[425898285,1782030674000,-1575.21,0.00028493,2]
[425898279,1782030674000,-639.64,0.00028493,2]
[425898326,1782030674000,-573.43,0.00028493,2]
[425898282,1782030674000,-927.82,0.00028493,2]
[425898277,1782030674000,-1512.61,0.00028493,2]
[425898278,1782030674000,-500.0,0.00028493,2]
[425898281,1782030674000,-500.0,0.00028493,2]
[425898271,1782030674000,-500.0,0.00028493,2]
[425898289,1782030674000,-500.0,0.00028493,2]
[425898290,1782030674000,-500.0,0.00028493,2]
[425898294,1782030674000,-500.0,0.00028493,2]
[425898293,1782030674000,-500.0,0.00028493,2]
[425898286,1782030674000,-500.0,0.00028493,2]
[425898291,1782030674000,-557.52,0.00028493,2]
[425898298,1782030674000,-500.0,0.00028493,2]
[425898296,1782030674000,-1589.62,0.00028493,2]
[425898284,1782030674000,-500.0,0.00028493,2]
[425898280,1782030674000,-5605.99,0.00028493,2]
[425898283,1782030674000,-500.0,0.00028493,2]
[425898287,1782030674000,-1872.05,0.00028493,2]
[425898299,1782030674000,-500.0,0.00028493,2]
[425898367,1782030675000,-616.27,0.00028493,2]
[425898366,1782030675000,-516.6,0.00028493,2]
[425898368,1782030675000,-500.0,0.00028493,2]
[425898364,1782030675000,-500.0,0.00028493,2]
[425898375,1782030675000,-500.0,0.00028493,2]
[425898361,1782030675000,-500.0,0.00028493,2]
[425898357,1782030675000,-500.0,0.00028493,2]
[425898355,1782030675000,-542.49,0.00028493,2]
[425898362,1782030675000,-500.0,0.00028493,2]
[425898358,1782030675000,-500.0,0.00028493,2]
[425898371,1782030675000,-500.0,0.00028493,2]
[425898360,1782030675000,-1206.28,0.00028493,2]
[425898365,1782030675000,-500.0,0.00028493,2]
[425898369,1782030675000,-390.31812348,0.00028493,2]
[425898380,1782030675000,-1375.03,0.00028493,2]
[425898374,1782030675000,-500.0,0.00028493,2]
[425898372,1782030675000,-7008.53,0.00028493,2]
[425898370,1782030675000,-500.0,0.00028493,2]
[425898376,1782030675000,-3851.02,0.00028493,2]
[425898377,1782030675000,-500.0,0.00028493,2]
[425898379,1782030675000,-500.0,0.00028493,2]
[425898378,1782030675000,-500.0,0.00028493,2]
[425898382,1782030675000,-500.0,0.00028493,2]
[425898381,1782030675000,-573.43,0.00028493,2]
[425898387,1782030675000,-500.0,0.00028493,2]
[425898383,1782030675000,-726.28,0.00028493,2]
[425898384,1782030675000,-500.0,0.00028493,2]
[425898373,1782030675000,-500.0,0.00028493,2]
[425898363,1782030675000,-584.85,0.00028493,2]
[425898329,1782030675000,-500.0,0.00028493,2]
[425898352,1782030675000,-785.35,0.00028493,2]
[425898332,1782030675000,-500.0,0.00028493,2]
[425898336,1782030675000,-500.0,0.00028493,2]
[425898327,1782030675000,-613.52,0.00028493,2]
[425898337,1782030675000,-500.0,0.00028493,2]
[425898334,1782030675000,-179.88595093,0.00028493,2]
[425898333,1782030675000,-500.0,0.00028493,2]
[425898335,1782030675000,-500.0,0.00028493,2]
[425898328,1782030675000,-500.0,0.00028493,2]
[425898330,1782030675000,-500.0,0.00028493,2]
[425898331,1782030675000,-1085.27,0.00028493,2]
[425898339,1782030675000,-500.0,0.00028493,2]
[425898341,1782030675000,-500.0,0.00028493,2]
[425898340,1782030675000,-500.0,0.00028493,2]
[425898349,1782030675000,-500.0,0.00028493,2]
[425898345,1782030675000,-500.0,0.00028493,2]
[425898344,1782030675000,-500.0,0.00028493,2]
[425898348,1782030675000,-500.0,0.00028493,2]
[425898343,1782030675000,-500.0,0.00028493,2]
[425898338,1782030675000,-655.64,0.00028493,2]
[425898350,1782030675000,-500.0,0.00028493,2]
[425898342,1782030675000,-558.3,0.00028493,2]
[425898346,1782030675000,-501.49,0.00028493,2]
[425898347,1782030675000,-500.0,0.00028493,2]
[425898351,1782030675000,-500.0,0.00028493,2]
[425898353,1782030675000,-500.0,0.00028493,2]
[425898354,1782030675000,-500.0,0.00028493,2]
[425898359,1782030675000,-551.49,0.00028493,2]
[425898356,1782030675000,-500.0,0.00028493,2]
[425898386,1782030675000,-500.0,0.00028493,2]
[425898385,1782030675000,-499.70084309,0.00028493,2]
[425898389,1782030675000,-500.0,0.00028493,2]
[425898422,1782030675000,-396.29,0.00028655,2]
[425898423,1782030675000,-185.2,0.00028673,2]
[425898418,1782030675000,-603.02,0.00028493,2]
[425898420,1782030675000,-300.0,0.000285,28]
[425898424,1782030675000,-644.4,0.00028673,2]
[425898427,1782030675000,-573.64,0.00028697,2]
[425898431,1782030675000,-2331.0,0.00028747,3]
[425898430,1782030675000,-185.15,0.00028719,2]
[425898438,1782030675000,-500.0,0.00028767,2]
[425898428,1782030675000,-7364.85946823,0.00028701,2]
[425898429,1782030675000,-573.57,0.00028708,2]
[425898432,1782030675000,-215.61523197,0.00028766,2]
[425898434,1782030675000,-577.23976879,0.00028766,2]
[425898435,1782030675000,-192.13631827,0.00028767,15]
[425898437,1782030675000,-489.807298,0.00028767,2]
[425898433,1782030675000,-159.68637363,0.00028766,2]
[425898440,1782030675000,-500.0,0.00028767,2]
[425898439,1782030675000,-1091.57,0.00028767,2]
[425898441,1782030675000,-500.0,0.00028767,2]
[425898442,1782030675000,-909.56,0.00028767,2]
[425898443,1782030675000,-531.37,0.00028767,2]
[425898445,1782030675000,-500.0,0.00028767,2]
[425898447,1782030675000,-740.51,0.00028767,2]
[425898444,1782030675000,-500.0,0.00028767,2]
[425898446,1782030675000,-500.0,0.00028767,2]
[425898448,1782030675000,-500.0,0.00028767,2]
[425898399,1782030675000,-500.0,0.00028493,2]
[425898421,1782030675000,-7500.0,0.000285,2]
[425898419,1782030675000,-983.27,0.00028493,2]
[425898436,1782030675000,-500.0,0.00028767,2]
[425898416,1782030675000,-2278.65,0.00028493,2]
[425898414,1782030675000,-647.76,0.00028493,2]
[425898397,1782030675000,-500.0,0.00028493,2]
[425898395,1782030675000,-555.63,0.00028493,2]
[425898398,1782030675000,-500.0,0.00028493,2]
[425898392,1782030675000,-500.0,0.00028493,2]
[425898393,1782030675000,-500.0,0.00028493,2]
[425898394,1782030675000,-944.61,0.00028493,2]
[425898388,1782030675000,-728.77,0.00028493,2]
[425898390,1782030675000,-597.07,0.00028493,2]
[425898396,1782030675000,-1266.83,0.00028493,2]
[425898400,1782030675000,-500.0,0.00028493,2]
[425898402,1782030675000,-2019.42,0.00028493,2]
[425898413,1782030675000,-500.0,0.00028493,2]
[425898410,1782030675000,-16367.63,0.00028493,2]
[425898391,1782030675000,-494.55648082,0.00028493,2]
[425898412,1782030675000,-500.0,0.00028493,2]
[425898404,1782030675000,-500.0,0.00028493,2]
[425898426,1782030675000,-185.2,0.00028697,2]
[425898425,1782030675000,-396.28,0.00028673,2]
[425898415,1782030675000,-500.0,0.00028493,2]
[425898409,1782030675000,-491.42816863,0.00028493,2]
[425898408,1782030675000,-795.36,0.00028493,2]
[425898417,1782030675000,-1305.95,0.00028493,2]
[425898407,1782030675000,-500.0,0.00028493,2]
[425898405,1782030675000,-504.46,0.00028493,2]
[425898401,1782030675000,-500.0,0.00028493,2]
[425898403,1782030675000,-2826.58,0.00028493,2]
[425898406,1782030675000,-901.13,0.00028493,2]
[425898411,1782030675000,-1592.33,0.00028493,2]
[425898490,1782030676000,-500.0,0.00028767,2]
[425898495,1782030676000,-500.0,0.00028767,2]
[425898493,1782030676000,-500.0,0.00028767,2]
[425898482,1782030676000,-832.58,0.00028767,2]
[425898487,1782030676000,-623.61,0.00028767,2]
[425898478,1782030676000,-530.85,0.00028767,2]
[425898485,1782030676000,-500.0,0.00028767,2]
[425898477,1782030676000,-500.0,0.00028767,2]
[425898479,1782030676000,-634.91,0.00028767,2]
[425898481,1782030676000,-652.16,0.00028767,2]
[425898489,1782030676000,-500.0,0.00028767,2]
[425898488,1782030676000,-500.0,0.00028767,2]
[425898491,1782030676000,-500.0,0.00028767,2]
[425898503,1782030676000,-500.0,0.00028767,2]
[425898496,1782030676000,-500.0,0.00028767,2]
[425898494,1782030676000,-582.57,0.00028767,2]
[425898492,1782030676000,-500.0,0.00028767,2]
[425898497,1782030676000,-895.62,0.00028767,2]
[425898498,1782030676000,-500.0,0.00028767,2]
[425898502,1782030676000,-678.98,0.00028767,2]
[425898501,1782030676000,-500.0,0.00028767,2]
[425898507,1782030676000,-500.0,0.00028767,2]
[425898505,1782030676000,-565.0,0.00028767,2]
[425898500,1782030676000,-500.0,0.00028767,2]
[425898499,1782030676000,-549.68,0.00028767,2]
[425898508,1782030676000,-345.30971461,0.00028767,2]
[425898480,1782030676000,-495.60117996,0.00028767,2]
[425898486,1782030676000,-500.0,0.00028767,2]
[425898472,1782030676000,-563.02,0.00028767,2]
[425898504,1782030676000,-526.83,0.00028767,2]
[425898475,1782030676000,-500.0,0.00028767,2]
[425898459,1782030676000,-500.0,0.00028767,2]
[425898449,1782030676000,-952.93,0.00028767,2]
[425898450,1782030676000,-592.47,0.00028767,2]
[425898452,1782030676000,-500.0,0.00028767,2]
[425898451,1782030676000,-558.94701244,0.00028767,2]
[425898453,1782030676000,-500.0,0.00028767,2]
[425898456,1782030676000,-500.0,0.00028767,2]
[425898455,1782030676000,-500.0,0.00028767,2]
[425898454,1782030676000,-500.0,0.00028767,2]
[425898458,1782030676000,-371.44470405,0.00028767,2]
[425898457,1782030676000,-500.0,0.00028767,2]
[425898460,1782030676000,-500.0,0.00028767,2]
[425898464,1782030676000,-500.0,0.00028767,2]
[425898465,1782030676000,-500.0,0.00028767,2]
[425898468,1782030676000,-656.6,0.00028767,2]
[425898470,1782030676000,-500.0,0.00028767,2]
[425898463,1782030676000,-623.21,0.00028767,2]
[425898471,1782030676000,-500.0,0.00028767,2]
[425898469,1782030676000,-500.0,0.00028767,2]
[425898462,1782030676000,-500.0,0.00028767,2]
[425898461,1782030676000,-500.0,0.00028767,2]
[425898467,1782030676000,-500.0,0.00028767,2]
[425898466,1782030676000,-747.33,0.00028767,2]
[425898473,1782030676000,-500.0,0.00028767,2]
[425898474,1782030676000,-500.0,0.00028767,2]
[425898476,1782030676000,-500.0,0.00028767,2]
[425898484,1782030676000,-750.93,0.00028767,2]
[425898483,1782030676000,-627.87,0.00028767,2]
[425898506,1782030676000,-500.0,0.00028767,2]
[425898546,1782030676000,-500.0,0.00028767,2]
[425898513,1782030676000,-500.0,0.00028767,2]
[425898540,1782030676000,-500.0,0.00028767,2]
[425898543,1782030676000,-500.0,0.00028767,2]
[425898537,1782030676000,-629.13,0.00028767,2]
[425898542,1782030676000,-940.34,0.00028767,2]
[425898544,1782030676000,-1110.81,0.00028767,2]
[425898551,1782030676000,-500.0,0.00028767,2]
[425898552,1782030676000,-500.0,0.00028767,2]
[425898550,1782030676000,-500.0,0.00028767,2]
[425898548,1782030676000,-1076.8,0.00028767,2]
[425898553,1782030676000,-500.0,0.00028767,2]
[425898554,1782030676000,-675.07,0.00028767,2]
[425898549,1782030676000,-1119.44,0.00028767,2]
[425898557,1782030676000,-500.0,0.00028767,2]
[425898547,1782030676000,-636.73982534,0.00028767,2]
[425898555,1782030676000,-500.0,0.00028767,2]
[425898556,1782030676000,-500.0,0.00028767,2]
[425898561,1782030676000,-1539.78,0.00028767,2]
[425898566,1782030676000,-500.0,0.00028767,2]
[425898568,1782030676000,-620.76,0.00028767,2]
[425898559,1782030676000,-500.0,0.00028767,2]
[425898567,1782030676000,-500.0,0.00028767,2]
[425898560,1782030676000,-500.0,0.00028767,2]
[425898563,1782030676000,-641.37,0.00028767,2]
[425898558,1782030676000,-500.0,0.00028767,2]
[425898562,1782030676000,-500.0,0.00028767,2]
[425898564,1782030676000,-500.0,0.00028767,2]
[425898517,1782030676000,-500.0,0.00028767,2]
[425898535,1782030676000,-500.0,0.00028767,2]
[425898565,1782030676000,-631.69,0.00028767,2]
[425898569,1782030676000,-1091.13,0.00028767,2]
[425898534,1782030676000,-500.0,0.00028767,2]
[425898541,1782030676000,-500.0,0.00028767,2]
[425898512,1782030676000,-838.22,0.00028767,2]
[425898509,1782030676000,-500.0,0.00028767,2]
[425898511,1782030676000,-500.0,0.00028767,2]
[425898518,1782030676000,-563.62,0.00028767,2]
[425898520,1782030676000,-500.0,0.00028767,2]
[425898515,1782030676000,-579.16,0.00028767,2]
[425898519,1782030676000,-764.28,0.00028767,2]
[425898516,1782030676000,-500.0,0.00028767,2]
[425898514,1782030676000,-500.0,0.00028767,2]
[425898532,1782030676000,-500.0,0.00028767,2]
[425898526,1782030676000,-500.0,0.00028767,2]
[425898529,1782030676000,-500.0,0.00028767,2]
[425898510,1782030676000,-500.0,0.00028767,2]
[425898525,1782030676000,-500.0,0.00028767,2]
[425898527,1782030676000,-500.0,0.00028767,2]
[425898545,1782030676000,-500.0,0.00028767,2]
[425898538,1782030676000,-500.0,0.00028767,2]
[425898530,1782030676000,-500.0,0.00028767,2]
[425898528,1782030676000,-500.0,0.00028767,2]
[425898539,1782030676000,-500.0,0.00028767,2]
[425898536,1782030676000,-609.23,0.00028767,2]
[425898533,1782030676000,-500.0,0.00028767,2]
[425898524,1782030676000,-500.0,0.00028767,2]
[425898531,1782030676000,-1312.08,0.00028767,2]
[425898522,1782030676000,-728.16,0.00028767,2]
[425898521,1782030676000,-500.0,0.00028767,2]
[425898523,1782030676000,-500.0,0.00028767,2]
[425898600,1782030677000,-500.0,0.00028767,2]
[425898601,1782030677000,-500.0,0.00028767,2]
[425898599,1782030677000,-500.0,0.00028767,2]
[425898595,1782030677000,-837.97,0.00028767,2]
[425898608,1782030677000,-500.0,0.00028767,2]
[425898598,1782030677000,-500.0,0.00028767,2]
[425898606,1782030677000,-511.44137,0.00028767,2]
[425898593,1782030677000,-592.77,0.00028767,2]
[425898597,1782030677000,-500.0,0.00028767,2]
[425898609,1782030677000,-500.0,0.00028767,2]
[425898610,1782030677000,-500.0,0.00028767,2]
[425898605,1782030677000,-609.05,0.00028767,2]
[425898602,1782030677000,-500.0,0.00028767,2]
[425898604,1782030677000,-500.0,0.00028767,2]
[425898607,1782030677000,-589.35,0.00028767,2]
[425898612,1782030677000,-500.0,0.00028767,2]
[425898611,1782030677000,-500.0,0.00028767,2]
[425898614,1782030677000,-610.58,0.00028767,2]
[425898613,1782030677000,-532.12523778,0.00028767,2]
[425898584,1782030677000,-500.0,0.00028767,2]
[425898618,1782030677000,-545.35,0.00028767,2]